Cogmind - Beta 13 @@@ ROGUE MODE // 2024.04.21 @ 22:47:32 Player: f_ Result: Destroyed by as-10846 with Assembled Blade Performance ------------- Evolutions (0) 0 Regions Visited (2) 400 Robots Destroyed (3) 15 Value Destroyed (34) 34 Prototype IDs (0) 0 Alien Tech Used (0) 0 Bonus (0) 0 TOTAL SCORE: 449 Bonus ------- None Cogmind --------- Core Integrity 0/250 Matter 164/300 Energy 100/100 System Corruption 4% Temperature Cool (0) Movement Core (150) Ox2 Location -10/Mines Parts ------- > --- POWER (1) -------- (None) > --- PROPULSION (2) --- Light Treads Light Treads > --- UTILITY (2) ------ Target Analyzer > --- WEAPON (2) ------- Flak Cannon Grenade Launcher > --- INVENTORY (5) ---- Light Ion Engine Huge Storage Unit Structural Scanner Reaction Control System Peak State ------------ > --- POWER ------------ (None) > --- PROPULSION ------- Light Treads Light Treads > --- UTILITY ---------- Signal Interpreter Target Analyzer > --- WEAPON ----------- Flak Cannon Grenade Launcher > --- INVENTORY -------- Light Ion Engine Huge Storage Unit Structural Scanner Reaction Control System [Rating: 10] Favorites ----------- Power None Propulsion Light Treads Treads Light Treads Utility Targeting Computer Device Structural Scanner Processor Targeting Computer Protection Improved Utility Shielding Weapon Beam Cannon Energy Gun EM Pulse Gun Energy Cannon Beam Cannon Ballistic Cannon Flak Cannon Launcher Grenade Launcher Build | -11 -10 -10 ------- Run | Yrd Mat Min Slots Evolved . | . . . Power . | . . . Propulsion . | . . . Utility . | . . . Weapon . | . . . Parts Attached 11 | 2 5 4 Power . | . . . Engine . | . . . Core . | . . . Reactor . | . . . Propulsion 2 | 2 . . Treads 2 | 2 . . Leg . | . . . Wheel . | . . . Hover . | . . . Flight . | . . . Utility 5 | . 2 3 Device 1 | . 1 . Storage . | . . . Processor 3 | . 1 2 Hackware . | . . . Protection 1 | . . 1 Artifact . | . . . Weapon 4 | . 3 1 Energy Gun 1 | . 1 . Energy Cannon 1 | . 1 . Ballistic Gun . | . . . Ballistic Cannon 1 | . . 1 Launcher 1 | . 1 . Special Weapon . | . . . Impact Weapon . | . . . Slashing Weapon . | . . . Piercing Weapon . | . . . Special Melee Weapon . | . . . Unidentified Prototypes . | . . . Parts Lost 3 | . 2 1 Power . | . . . Propulsion . | . . . Utility 2 | . 1 1 Weapon 1 | . 1 . Highest Loss Streak 2 | . 2 1 To Critical Strikes . | . . . Average Slot Usage (%) 57 | . 55 63 Treads 28 | . 28 28 Processor 12 | . 11 15 Energy Cannon 8 | . 10 . Ballistic Cannon 1 | . . 5 Launcher 5 | . 2 14 Naked Turns . | . . . Heaviest Build 6 | . 6 5 Greatest Support 20 | 20 3 3 Greatest Overweight (x) 1 | . 1 1 Average Overweight (x) . | . . . Largest Inventory Capacity 5 | 5 5 5 Average Capacity 5 | 5 5 5 Most Carried 5 | 2 5 5 Average Carried 4 | 1 4 4 Final Capacity 5 | 5 5 5 Final Carried 4 | 2 4 4 Class Distribution -------------------- 100% | Mutant Dominant Class ---------------- Mutant | -10/Materials Mutant | -10/Mines Resources | -11 -10 -10 ----------- Run | Yrd Mat Min Matter Collected 322 | 194 66 62 Remotely . | . . . Salvage Created 90 | . 85 5 Parts 4 | . 4 . Haulers Intercepted 1 | . 1 . Recyclers Shooed . | . . . Parts Field Recycled . | . . . Retrieved Matter . | . . . Parts Self-Destructed . | . . . Prevented . | . . . Kills | -11 -10 -10 ------- Run | Yrd Mat Min Combat Hostiles Destroyed 4 | . . 4 Cannons 4 | . . 4 Classes Destroyed 3 | . 2 1 Hauler 1 | . 1 . Watcher 2 | . 2 . Assembled 4 | . . 4 Best Kill Streak 4 | . 1 4 Combat Bots Only 4 | . . 4 Max Kills in Single Turn 1 | . 1 1 Gunslinging . | . . . Exploded . | . . . Melee . | . . . Uniques/NPCs Destroyed . | . . . Combat | -11 -10 -10 -------- Run | Yrd Mat Min Hostile Shots Fired 12 | . . 12 Missed 3 | . . 3 Damage Taken 560 | . 354 206 Core 278 | . 191 87 Absorbed by Shields . | . . . Core Remaining (%) 100 | 100 . . Volleys Fired 32 | . 21 11 Largest 1 | . 1 1 Hottest 60 | . 60 44 Shots Fired 32 | . 21 11 Gun 1 | . 1 . Cannon 22 | . 11 11 Launcher 9 | . 9 . Special . | . . . Kinetic 11 | . . 11 Thermal 11 | . 11 . Explosive 9 | . 9 . Electromagnetic 1 | . 1 . Robot Hit Streak 10 | . 4 10 Robot Miss Streak 5 | . 2 5 Penetration Max . | . . . Secondary Targets . | . . . Shots Hit Robots 20 | . 9 11 Core Hits 17 | . 3 14 Critical Kills . | . . . Critical Parts Destroyed . | . . . Critical Strikes . | . . . Melee Attacks . | . . . Impact . | . . . Slashing . | . . . Piercing . | . . . Sneak Attacks . | . . . Combat Hostiles . | . . . Follow-up Attacks . | . . . Damage Inflicted 399 | . 198 201 Guns 20 | . 20 . Cannons 344 | . 143 201 Explosions 35 | . 35 . Melee . | . . . Ramming . | . . . Kinetic 201 | . . 201 Thermal 178 | . 178 . Explosive . | . . . Electromagnetic 20 | . 20 . Impact . | . . . Slashing . | . . . Piercing . | . . . Highest Corruption 4 | . 4 4 Average Corruption 4 | . 4 4 Corruption Purged . | . . . Corruption Blocked . | . . . Effects 1 | . . 1 Matter Fused 1 | . . 1 Overload Shots . | . . . Overflow Damage 6 | . 6 . Projectiles 6 | . 6 . Explosions . | . . . Melee . | . . . Knockbacks . | . . . Impact . | . . . Kinetic . | . . . Secondary . | . . . Self-Inflicted Damage . | . . . Shots . | . . . Rammed . | . . . Targets Rammed . | . . . Kicked . | . . . Crushed . | . . . Highest Temperature 50 | . 50 . Average Temperature 24 | . 24 . Received Heat Transfer . | . . . Siege Activations . | . . . Robots Corrupted . | . . . Combat Hostiles . | . . . Parts Fried . | . . . Impact Corruptions . | . . . Robots Melted . | . . . Combat Hostiles . | . . . Parts Melted . | . . . Heat Transferred 296 | . 296 . Parts Sabotaged . | . . . Parts Stolen . | . . . Parts Stripped . | . . . Power Chain Reactions 1 | . 1 . Alert | -11 -10 -10 ------- Run | Yrd Mat Min Peak Influence 97 | . 97 30 Initial 30 | . . 30 Average 47 | . 58 30 Maximum Alert Level . | . . . Low Security (%) 100 | 100 100 100 Level 1 . | . . . Level 2 . | . . . Level 3 . | . . . Level 4 . | . . . Level 5 . | . . . High Security . | . . . Max Security . | . . . Squads Dispatched 1 | . . 1 Investigation 1 | . . 1 Extermination . | . . . Reinforcement . | . . . Assault . | . . . Garrison . | . . . Intercept . | . . . Searches Triggered . | . . . Construction Impeded . | . . . Haulers Reinforced . | . . . Active Scanning Responses . | . . . Cargo Convoy Interrupts . | . . . Stealth | -11 -10 -10 --------- Run | Yrd Mat Min Distress Signals . | . . . Communications Jammed . | . . . Distress Signals . | . . . Times Spotted 12 | . 2 10 Peak Tracking Total 13 | . 1 13 Tactical Retreats 1 | . . 1 Traps | -11 -10 -10 ------- Run | Yrd Mat Min Traps Triggered . | . . . Indirectly . | . . . Trap Hack Attempts . | . . . Triggered . | . . . Disarmed . | . . . Reprogrammed . | . . . Reused . | . . . Traps Extracted . | . . . Installed . | . . . Triggered . | . . . Machines | -11 -10 -10 ---------- Run | Yrd Mat Min Machines Disabled . | . . . Max in Single Turn . | . . . Machines Repaired . | . . . Machines Dismantled . | . . . Machines Sabotaged . | . . . Overloaded Fab Kills . | . . . Hacking | -11 -10 -10 --------- Run | Yrd Mat Min Machines Accessed 6 | . 5 1 Terminals 5 | . 5 . Fabricators . | . . . Repair Stations . | . . . Recycling Units . | . . . Scanalyzers . | . . . Garrison Access . | . . . Total Hacks 17 | . 16 1 Successful 9 | . 8 1 Failed 8 | . 8 . Catastrophic 1 | . 1 . Database Lockouts . | . . . Manual 13 | . 13 . Terminals 16 | . 16 . Fabricators . | . . . Repair Stations . | . . . Recycling Units . | . . . Scanalyzers . | . . . Garrison Access . | . . . Terminal Hacks 8 | . 7 1 Part Schematic 1 | . 1 . Robot Analysis 3 | . 3 . Open Door 1 | . . 1 Branch Access Points 1 | . 1 . Terminal Index 1 | . 1 . Locate Traps 1 | . 1 . Fabricator Hacks . | . . . Repair Station Hacks . | . . . Recycling Unit Hacks . | . . . Scanalyzer . | . . . Garrison Access Hacks . | . . . Unauthorized Hacks 1 | . 1 . Terminals 1 | . 1 . Botnet 1 | . 1 . Fabricators . | . . . Repair Stations . | . . . Recycling Units . | . . . Scanalyzers . | . . . Garrison Access . | . . . Data Cores Recovered . | . . . Used . | . . . Hacking Detections 4 | . 4 . Full Trace Events . | . . . Feedback Events . | . . . Feedback Blocked . | . . . Robot Schematics Acquired . | . . . Robots Built . | . . . Authchips . | . . . Time . | . . . Total Robot Build Rating . | . . . Part Schematics Acquired 1 | . 1 . Parts Built . | . . . Authchips . | . . . Time . | . . . Total Part Build Rating . | . . . Parts Repaired . | . . . Time . | . . . Parts Recycled . | . . . Recycled Matter . | . . . Retrieved Matter . | . . . Retrieved Components . | . . . Parts Scanalyzed . | . . . Part Schematics Acquired . | . . . Parts Damaged . | . . . Bothacking | -11 -10 -10 ------------ Run | Yrd Mat Min Used RIF Installer . | . . . Robots Hacked . | . . . Non-combat . | . . . Combat . | . . . Robot Hacks Applied . | . . . Relay Couplers Released . | . . . Fabnet Peak Effective % . | . . . Robots Rewired . | . . . Allies Hacked . | . . . Hacks Repelled . | . . . Allies | -11 -10 -10 -------- Run | Yrd Mat Min Total Allies . | . . . Largest Group . | . . . Highest-Rated Group . | . . . Highest-Rated Ally . | . . . Total Orders . | . . . Ally Attacks . | . . . Total Damage . | . . . Kills . | . . . Allies Corrupted . | . . . Allies Melted . | . . . Intel | -11 -10 -10 ------- Run | Yrd Mat Min Robot Analysis Total 3 | . 3 . Derelict Logs Recovered 1 | . . 1 Drone Launches . | . . . Drone Recoveries . | . . . Exploration | -11 -10 -10 ------------- Run | Yrd Mat Min Turns Passed 329 | 24 226 79 Spaces Moved 402 | 31 286 85 Core 399 | 28 286 85 Treads 3 | 3 . . Legs . | . . . Wheels . | . . . Hover . | . . . Flight . | . . . Fastest Speed 50 | 50 50 50 Average Speed 52 | 60 51 52 Slowest Speed 160 | 160 100 100 Overloaded Moves . | . . . Propulsion Burnouts . | . . . Robots Hopped . | . . . Cave-ins Triggered 1 | . 1 . Exploration Rate (%) 24 | 3 44 25 Regions Visited 2 Branch Regions 1 Pre-discovered Areas 1 | . . 1 Known Exits Taken 1 | . 1 . Unknown Exits Taken 1 | 1 . . Scrap Searched 1 | . . 1 Spaces Dug 28 | . 28 . Terrain Destroyed 79 | . 79 . Melee . | . . . Projectile . | . . . AOE 79 | . 79 . Terrain Rammed . | . . . Walls Destroyed . | . . . Machines Disabled . | . . . Actions | -11 -10 -10 --------- Run | Yrd Mat Min Total 485 | 34 343 108 Wait 27 | . 24 3 Move 399 | 30 284 85 Hop . | . . . Pick Up 10 | 2 5 3 Fast Attach 6 | 2 2 2 Attach 5 | . 3 2 Detach 1 | . 1 . Swap . | . . . Drop 4 | . 2 2 Fire 32 | . 21 11 Melee . | . . . Ram . | . . . Kick . | . . . Crush . | . . . Escape Stasis 1 | . 1 . Rewire . | . . . Trap . | . . . Miscellaneous . | . . . Route ------- -11/Scrapyard -10/Materials (discovered 3 exits: [*Mat] / *Min x2) -10/Mines History --------- Turn | Location | Event 6 | -11/Scrapyard | Discovered new exit (range 16) 25 | -11/Scrapyard | Entered Materials 133 | -10/Materials | Identified exit to Mines 195 | -10/Materials | Discovered new exit (range 15) 241 | -10/Materials | Crushed by falling debris 242 | -10/Materials | Core integrity fell below 50% 251 | -10/Materials | Entered Mines 274 | -10/Mines | Met a Derelict shopkeep closing up shop 296 | -10/Mines | Assembled infested the area 312 | -10/Mines | Core integrity fell below 20% 328 | -10/Mines | Build established: Mutant 330 | -10/Mines | Destroyed by as-10846 with Assembled Blade Last Messages --------------- 00276_ ALERT: Derelict activity detected in mines. Dispatching investigation squad. 00278_ HZ-TAC(g): "Grab stuff and run for it!" 00279_ Acquired derelict log, extracted data. World map updated: -9/Materials. 00280_ Acquired Imp. Utility Shielding. 00283_ Dropped Signal Interpreter. 00284_ Acquired Flak Cannon. 00288_ Acquired Reaction Control System. 00289_ Dropped Imp. Utility Shielding. 00290_ Acquired Target Analyzer. 00296_ ALERT: Infestation in the mines, dispatching Demolisher response squad. 00299_ as-42189 sneak attacks. 00299_ K-01 Serf destroyed. 00310_ as-29466 destroyed. 00312_ as-42189 destroyed. 00318_ System corrupted: Matter fused (-7). 00318_ as-83463 destroyed. 00326_ as-72887 destroyed. 00330_ Signal Interpreter destroyed. Map ----- +----------------------------------------------------+ | ???????????# #???# """ | | ???????????# #???# | | ???######### #???# | | ???# #???############## | | ???# #????????????????? | | ???# #########????????????????? | | ???# #????????????????????????? | | ???# #????###?????????????????? | | ???# ##??? ##????????????????? | | ???# ##?# ##???????????????? | | ???# ## ##??????????????? | | ???# ####???????????? | | ???# ??????????? | | ???# ??????????? | | ???# ###???????????? | | ???# ##?????????????? | | ???## #####??????????????? | | ?#### ##??????????????????? | | ##""## ##???????????????????? | | #" ! #X ##????????????????????? | | #"! ##?????????????????????? | | #"] ##?????????????????????? | | #"! # ##????????????????????? | | ##""## #????????????????????? | | ?#### #????????????????????? | | ????## @ ##????????????????????? | | ?????###a#?????????????????????? | | ???????# #?????????????????????? | | ???????# #???############??????? | | ???????# #???# | | ???????# ##### ######### #?????? | | ???????# =#???????????????? | | ???????#######%#???????????????? | | ????????????? *!#??????????????? | | ?????????????=% #?????????????? | | ????????????? #????????????? | | ????????????? #????????????? | | ???????????? #????????????? | | ???????????? ????????????? | | ???????????? ???????????? | | ???????????? ? #??????????? | | ???????????## ##??????????? | | ????????????# ?#???????????? | | ?????????????# #?????????????? | | ??????????????####?????????????? | | ???????????????????????????????? | | ???????????????????????????????? | | ???????????????????????????????? | | ???????????????????????????????? | | ???????????????????????????????? | +----------------------------------------------------+ Best States ------------- Heat Dissipation 25 Energy Generation 5 Energy Capacity 100 Matter Stores 300 Matter Capacity 300 Sight Range 16 Terrain Scan Density 10 Evasion (%) 50 Targeting Accuracy 5 Target Analysis 5 Recoil Reduction 1 Item Schematics ----------------- Hammer | -10/Materials | Hacked Robot Schematics ------------------ None Fabricated ------------ Nothing Alien Tech Used ----------------- None Achievements -------------- None Challenges ------------ None Game ------ Seed GravmagResetRifle Manual? 0 Play Time 00:11:51 Cumulative 204.3 hours Start 2024.04.21 @ 22:22:52 End 2024.04.21 @ 22:47:32 Sessions 1 Manual Loads 0 Difficulty Rogue Special Mode None Game No. 176 Rogue 168 Adventurer 0 Explorer 8 Win Type - Total 7 Types 4/0/1/2/0/0/0/0/0 Lore% 58 Gallery% 67 Achievement% 53 Wizard Run 0 Options --------- Layout 0 ASCII 0 Keyboard 0 Movement Mouse Keybinds 0 Fullscreen 2 Font 36/Terminus Map View 83x50 Zoom Use 0% Tactical HUD 1 Map Filters NONE Filters NONE Steam 1 RUN: c0ea2be7-25e3-4c0a-9d52-821f0999287c